bitfinex/quotes_SOLUSD_20260109
["timestamp","ask_amount","ask_price","bid_price","bid_amount"]
[1767965999665,2.79521444,138.72,138.69,0.68687013]
[1767966000755,13.14,138.74,138.71,0.68687013]
[1767966001674,2.79521444,138.75,138.71,0.68687013]
[1767966001880,2.79521444,138.76,138.72,0.68687013]
[1767966002183,2.79521444,138.74,138.71,0.68687013]
[1767966002371,2.79521444,138.75,138.71,0.68687013]
[1767966003084,2.79521444,138.73,138.69,18.70368891]
[1767966003373,13.16,138.74,138.67,0.67836059]
[1767966003584,2.79521444,138.7,138.67,0.67836059]
[1767966003888,15.95521444,138.74,138.67,7.88924096]
[1767966003889,2.79521444,138.71,138.67,7.88924096]
[1767966004049,2.79521444,138.72,138.68,0.67836059]
[1767966004568,2.79521444,138.71,138.67,7.21088037]
[1767966005562,2.79521444,138.72,138.67,10.00609481]
[1767966005757,7.49204083,138.75,138.69,0.67836059]
[1767966005966,8.23674587,138.74,138.69,0.62697064]
[1767966006162,8.23674587,138.74,138.68,2.79521444]
[1767966006163,2.84684823,138.72,138.67,28.03450758]
[1767966008181,0.05163379,138.72,138.67,28.71286817]
[1767966008358,2.84684823,138.72,138.67,28.71286817]
[1767966008563,0.05163379,138.72,138.68,2.79521444]
[1767966008764,2.79521444,138.73,138.69,0.67836059]
[1767966009482,10.00361641,138.73,138.69,0.67836059]
[1767966009786,2.79521444,138.72,138.69,0.67836059]
[1767966010484,2.79521444,138.73,138.7,0.67836059]
[1767966011189,2.84684823,138.73,138.69,7.21028177]
[1767966011570,2.79521444,138.73,138.7,0.67836059]
[1767966011895,13.16,138.75,138.71,0.67836059]
[1767966012204,5.39018725,138.74,138.71,0.67836059]
[1767966012375,15.95521444,138.75,138.71,0.67836059]
[1767966012579,5.39068171,138.74,138.71,0.67836059]
[1767966012777,15.95521444,138.75,138.71,0.67836059]
[1767966012973,13.16,138.75,138.72,0.67836059]
[1767966013179,13.16,138.75,138.73,0.67836059]
[1767966014277,7.20641094,138.77,138.73,0.67836059]
[1767966014481,8.18505958,138.76,138.73,0.67836059]
[1767966014682,2.79521444,138.76,138.73,0.67836059]
[1767966014980,2.79521444,138.75,138.73,0.67836059]
[1767966015181,2.79521444,138.74,138.73,0.6418731]
[1767966015490,2.79521444,138.74,138.7,7.20962147]
[1767966015491,8.18592281,138.74,138.69,7.21019719]
[1767966015669,2.79521444,138.73,138.69,7.21019719]
[1767966016772,2.79521444,138.73,138.68,2.79521444]
[1767966017078,20.36733811,138.75,138.69,10.00553962]
[1767966017079,2.79521444,138.74,138.69,10.00553962]
[1767966017272,15.95521444,138.75,138.7,0.67836059]
[1767966017884,0.08812128,138.74,138.7,0.67836059]
[1767966019192,2.88333572,138.74,138.71,7.20928555]
[1767966019997,0.08812128,138.74,138.71,7.20928555]
[1767966020200,2.88333572,138.74,138.71,7.20928555]
[1767966020499,0.08812128,138.74,138.71,7.20928555]
[1767966020682,2.88333572,138.74,138.71,7.20928555]
[1767966020992,13.24812128,138.75,138.71,7.20928555]
[1767966021198,16.04333572,138.75,138.71,7.20928555]
[1767966021581,15.95521444,138.75,138.71,7.88764614]
[1767966021776,0.28432314,138.79,138.73,0.67836059]
[1767966021999,2.79521444,138.77,138.73,0.67836059]
[1767966022300,2.79521444,138.76,138.73,0.67836059]
[1767966022883,2.79521444,138.75,138.72,0.67836059]
[1767966023091,7.57757447,138.79,138.72,0.67836059]
[1767966023290,5.3915432,138.78,138.74,0.67836059]
[1767966023601,0.08812128,138.76,138.73,25.22886181]
[1767966023810,0.05812129,138.76,138.73,25.22886181]
[1767966024684,2.79521444,138.76,138.74,0.67836059]
[1767966024878,2.79521444,138.75,138.74,0.67836059]
[1767966025194,2.79521444,138.75,138.72,7.20857992]
[1767966025603,2.79521444,138.74,138.72,7.20857992]
[1767966025796,2.76521445,138.74,138.72,7.20857992]
[1767966026180,2.79521444,138.73,138.72,7.20857992]
[1767966026380,2.79521444,138.74,138.72,7.20857992]
[1767966027109,2.79521444,138.74,138.73,0.67836059]
[1767966027403,7.20584267,138.78,138.74,0.67836059]
[1767966027705,2.79521444,138.75,138.74,0.67836059]
[1767966028500,2.79521444,138.76,138.74,0.67836059]
[1767966030314,2.79521444,138.76,138.74,7.20772668]
[1767966030496,2.79521444,138.76,138.73,7.20779407]
[1767966030704,2.79521444,138.76,138.74,7.14913623]
[1767966030901,2.79521444,138.76,138.73,7.20803524]
[1767966031412,2.79521444,138.76,138.72,25.22961132]
[1767966031799,2.79521444,138.75,138.72,7.20876585]
[1767966032497,2.79521444,138.75,138.73,0.67836059]
[1767966034601,7.20633256,138.77,138.73,0.67836059]
[1767966034602,2.79521444,138.74,138.73,0.67836059]
[1767966034991,2.76521445,138.74,138.73,0.67836059]
[1767966037110,2.79521444,138.75,138.73,0.67836059]
[1767966038710,4.36907069,138.75,138.73,7.88658301]
[1767966038913,7.20633256,138.77,138.73,7.88658301]
[1767966039092,4.36907069,138.75,138.73,7.88658301]
[1767966039812,4.36907069,138.77,138.74,0.67156494]
[1767966040222,4.36907069,138.76,138.74,0.67156494]
[1767966041209,4.36907069,138.76,138.74,7.8792803]
[1767966042260,13.16,138.8,138.75,0.67156494]
[1767966042404,0.653229,138.83,138.76,0.67156494]
[1767966042605,0.653229,138.83,138.75,4.36907069]
[1767966042606,0.16517272,138.84,138.78,0.67156494]
[1767966042922,4.36907069,138.82,138.78,0.67156494]
[1767966043306,4.36907069,138.82,138.8,0.67156494]
[1767966044522,4.36907069,138.83,138.8,0.67156494]
[1767966044905,20.50726069,138.85,138.8,0.67156494]
[1767966045220,4.36907069,138.83,138.8,0.67156494]
[1767966045620,4.36907069,138.83,138.8,7.8760123]
[1767966045823,4.36907069,138.84,138.81,0.67156494]
[1767966046448,4.53424341,138.86,138.81,5.04063563]
[1767966046617,0.653229,138.85,138.81,0.67156494]
[1767966047026,4.36907069,138.86,138.81,0.67156494]
[1767966047243,4.36907069,138.85,138.81,0.67156494]
[1767966047413,4.36907069,138.86,138.81,0.67156494]
[1767966047844,4.36907069,138.86,138.83,0.67156494]
[1767966048225,4.36907069,138.85,138.83,0.67156494]
[1767966049027,4.36907069,138.86,138.83,0.70215194]
[1767966049650,0.65446676,138.85,138.82,25.2125054]
[1767966049949,13.24,138.88,138.82,23.08015506]
[1767966050253,4.36907069,138.87,138.82,23.08015506]
[1767966051018,4.36907069,138.87,138.83,0.70215194]
[1767966051843,4.46907069,138.88,138.83,0.70215194]
[1767966052036,0.75446676,138.88,138.84,7.90468723]
[1767966052270,5.12353745,138.88,138.84,7.90468723]
[1767966052426,0.75446676,138.88,138.84,30.28009615]
[1767966052621,0.1,138.88,138.85,4.36907069]
[1767966053119,0.23865581,138.89,138.85,4.36907069]
[1767966053623,0.23865581,138.89,138.86,4.36907069]
[1767966053950,0.1,138.9,138.88,0.70215194]
[1767966054132,0.1,138.9,138.88,0.66263668]
[1767966054343,4.46907069,138.9,138.88,0.66263668]
[1767966055127,0.1,138.9,138.88,0.66263668]
[1767966055524,0.1,138.92,138.88,4.36907069]
[1767966055739,4.46907069,138.92,138.87,29.57249777]
[1767966056042,4.36907069,138.91,138.88,0.70215194]
[1767966056447,4.46907069,138.92,138.88,0.70215194]
[1767966057121,4.46907069,138.92,138.89,0.70215194]
[1767966057122,0.1,138.92,138.89,0.70215194]
[1767966057422,4.46907069,138.92,138.89,0.70215194]
[1767966058238,4.46907069,138.92,138.88,7.20002119]
[1767966058544,0.6489682,138.91,138.88,7.20002119]
[1767966058940,4.46907069,138.92,138.89,0.70215194]
[1767966060048,4.46907069,138.92,138.89,7.90206455]
[1767966060049,0.1,138.92,138.89,7.90206455]
[1767966060235,4.46907069,138.92,138.89,7.90206455]
[1767966060431,4.36907069,138.91,138.88,7.902421]
[1767966061744,4.46907069,138.92,138.88,7.902421]
[1767966062141,0.1,138.92,138.89,0.70215194]
[1767966062338,4.46907069,138.92,138.89,0.70215194]
[1767966062565,4.75129018,138.9,138.85,0.70215194]
[1767966062752,0.38221949,138.9,138.85,7.86614686]
[1767966062941,4.36907069,138.88,138.85,7.86614686]
[1767966063142,4.36907069,138.89,138.85,7.86614686]
[1767966063350,4.36907069,138.89,138.86,7.20139496]
[1767966063638,38.43438351,138.92,138.89,0.66427817]
[1767966063639,17.60907069,138.92,138.89,0.66427817]
[1767966064636,17.60907069,138.92,138.88,11.56951559]
[1767966064833,0.68337791,138.91,138.87,11.5698283]
[1767966065639,5.0524486,138.91,138.87,7.20075761]
[1767966065851,0.34815388,138.9,138.87,7.20075761]
[1767966066445,4.71722457,138.9,138.87,7.20075761]
[1767966066753,4.36907069,138.88,138.85,7.86611379]
[1767966066956,4.36907069,138.87,138.85,7.20183562]
[1767966067148,4.36907069,138.9,138.87,0.66427817]
[1767966067340,0.69028796,138.91,138.87,0.66427817]
[1767966067341,7.88926183,138.91,138.87,0.66427817]
[1767966067547,4.36907069,138.89,138.87,0.66427817]
[1767966068940,4.36907069,138.88,138.85,7.86619142]
[1767966069144,4.36907069,138.87,138.85,7.86619142]
[1767966071071,4.36907069,138.86,138.84,7.20249945]
[1767966071238,4.36907069,138.86,138.84,7.86677762]
[1767966071442,7.88698515,138.89,138.84,7.86677762]
[1767966071650,4.36907069,138.86,138.84,7.86677762]
[1767966071953,4.36907069,138.86,138.84,7.82735582]
[1767966072644,4.36907069,138.85,138.83,7.86724842]
[1767966073966,0.02655914,138.83,138.7,0.66427817]
[1767966074168,4.36907069,138.71,138.66,11.12875124]
[1767966074470,8.73814138,138.67,138.62,0.2]
[1767966074642,12.415,138.66,138.57,0.2]
[1767966074843,0.69028796,138.64,138.57,0.2]
[1767966075061,13.14,138.66,138.57,0.2]
[1767966075266,13.83028796,138.66,138.57,0.2]
[1767966075748,4.36907069,138.61,138.57,0.2]
[1767966076077,4.36907069,138.64,138.57,4.56907069]
[1767966076274,13.14,138.65,138.57,0.2]
[1767966076771,11.61133953,138.62,138.58,25.25616971]
[1767966076983,11.61133953,138.61,138.58,25.25616971]
[1767966077153,13.83028796,138.65,138.58,25.25616971]
[1767966077352,11.61133953,138.64,138.58,36.86750924]
[1767966077553,13.14,138.65,138.59,0.28432314]
[1767966077770,18.02674772,138.69,138.61,7.21448668]
[1767966077771,24.75133953,138.66,138.61,7.21448668]
[1767966077972,11.61133953,138.65,138.61,7.21448668]
[1767966079163,24.75133953,138.66,138.61,18.82582621]
[1767966079365,24.75133953,138.66,138.61,7.21448668]
[1767966079678,11.61133953,138.65,138.6,18.82620849]
[1767966079880,11.61133953,138.64,138.6,7.21486896]
[1767966080265,11.61133953,138.65,138.6,18.82620849]
[1767966080982,24.75133953,138.66,138.6,7.21486896]
[1767966081160,24.75133953,138.66,138.61,11.61133953]
[1767966081980,13.14,138.65,138.61,11.61133953]
[1767966082479,24.75133953,138.65,138.6,18.82620849]
[1767966082850,24.75133953,138.65,138.6,7.21486896]
[1767966083052,24.75133953,138.65,138.6,18.82620849]
[1767966083476,13.14,138.65,138.6,18.82620849]
[1767966083690,24.75133953,138.65,138.6,18.82620849]
[1767966084283,13.14,138.65,138.62,11.61133953]
[1767966084679,13.11000001,138.65,138.62,11.61133953]
[1767966084877,12.30162749,138.66,138.61,11.61133953]
[1767966085268,13.16,138.65,138.61,11.61133953]
[1767966086465,13.16,138.65,138.61,7.21431031]
[1767966086466,25.46162749,138.65,138.61,7.21431031]
[1767966086787,0.69028796,138.67,138.63,11.61133953]
[1767966086993,0.69028796,138.67,138.64,11.61133953]
[1767966086994,13.16,138.66,138.64,11.61133953]
[1767966087161,13.16,138.66,138.63,11.61133953]
[1767966087758,13.16,138.66,138.61,25.25052703]
[1767966087988,13.16,138.66,138.63,11.61133953]
[1767966088187,13.16,138.66,138.58,25.54049285]
[1767966088689,13.16,138.66,138.62,11.61133953]
[1767966089469,12.30162749,138.64,138.59,7.21547174]
[1767966089687,0.69028796,138.62,138.58,18.82723362]
[1767966089886,0.69028796,138.62,138.57,7.21646863]
[1767966090090,0.69028796,138.59,138.56,7.41708731]
[1767966090271,0.69028796,138.59,138.57,18.82783506]
[1767966090783,0.69028796,138.59,138.56,0.2]
[1767966091086,0.69028796,138.59,138.56,19.02825626]
[1767966091284,0.69028796,138.58,138.54,11.61133953]
[1767966091485,0.69028796,138.58,138.55,18.82855832]
[1767966091987,13.16,138.59,138.55,18.82855832]
[1767966092190,13.16,138.59,138.55,7.88149696]
[1767966092492,13.16,138.59,138.55,19.49283649]
[1767966093284,13.16,138.59,138.55,12.2756177]
[1767966093488,13.16,138.59,138.54,18.82926435]
[1767966093489,32.66500081,138.59,138.54,18.82926435]
[1767966094274,32.66500081,138.59,138.54,19.54975127]
[1767966094485,32.66500081,138.59,138.54,19.21152911]
[1767966096176,0.67808782,138.58,138.53,0.2]
[1767966096381,25.44942735,138.58,138.53,19.02967515]
[1767966097194,25.44942735,138.58,138.53,19.75016207]
[1767966097397,13.83808782,138.58,138.54,7.21808421]
[1767966097599,25.44942735,138.58,138.54,7.21808421]
[1767966097898,13.16,138.57,138.53,19.75029176]
[1767966098696,13.16,138.57,138.53,10.94221137]
[1767966099505,15.96325914,138.58,138.54,0.72048692]
[1767966099794,16.64134696,138.58,138.54,0.72048692]
[1767966099981,16.64134696,138.58,138.53,10.94221137]
[1767966099982,2.80325914,138.57,138.53,10.94221137]
[1767966100392,16.64134696,138.58,138.53,10.94221137]
[1767966101102,13.16,138.57,138.53,10.94221137]
[1767966101477,0.67808782,138.58,138.54,3.52374606]
[1767966101895,13.83808782,138.58,138.54,3.52374606]
[1767966102100,13.16,138.58,138.54,3.52374606]
[1767966102794,13.16,138.58,138.55,7.21761097]
[1767966102981,16.64134696,138.59,138.55,7.93809789]
[1767966103298,0.67808782,138.58,138.55,7.21761097]
[1767966103783,0.67808782,138.58,138.55,10.02087011]
[1767966104100,0.67808782,138.61,138.57,2.80325914]
[1767966104675,0.67808782,138.61,138.57,10.01941279]
[1767966104878,0.67808782,138.61,138.58,2.80325914]
[1767966105887,15.96325914,138.63,138.59,0.72048692]
[1767966106290,16.64134696,138.63,138.59,0.72048692]
[1767966106591,2.80325914,138.63,138.59,0.72048692]
[1767966106781,2.80325914,138.63,138.59,7.93587191]
[1767966107180,3.48134696,138.63,138.59,7.93587191]
[1767966107490,0.67808782,138.61,138.59,7.21538499]
[1767966107689,0.67808782,138.61,138.57,20.84468224]
[1767966108298,3.47260693,138.6,138.55,33.98653673]
[1767966108502,0.66934779,138.59,138.57,6.49138849]
[1767966108804,0.6393478,138.59,138.57,6.49138849]
[1767966108980,0.6393478,138.59,138.56,7.21709006]
[1767966109497,0.60934781,138.59,138.56,10.0203492]
[1767966110403,2.80325914,138.6,138.56,28.06307437]
[1767966110603,2.80325914,138.61,138.56,28.06307437]
[1767966111504,3.46825916,138.61,138.56,28.06307437]
[1767966111702,0.03960001,138.6,138.56,28.06307437]
[1767966111905,2.80325914,138.61,138.57,0.65440993]
[1767966112099,7.21396662,138.62,138.57,0.65440993]
[1767966112310,2.80325914,138.61,138.57,0.65440993]
[1767966114986,2.80325914,138.61,138.57,7.87072775]
[1767966117017,7.21396662,138.62,138.58,0.65440993]
[1767966117201,8.16092703,138.61,138.58,0.65440993]
[1767966117400,2.80325914,138.61,138.58,0.65440993]
[1767966117593,2.80325914,138.61,138.57,7.21631782]
[1767966117795,0.65261648,138.6,138.57,7.21631782]
[1767966118009,0.5926165,138.6,138.57,7.21631782]
[1767966118202,5.37676531,138.59,138.57,7.21631782]
[1767966118403,0.5926165,138.6,138.58,7.16366493]
[1767966118712,0.5926165,138.6,138.57,7.21613762]
[1767966118913,2.80325914,138.61,138.58,0.65440993]
[1767966119219,2.80325914,138.61,138.57,7.21613762]
[1767966119899,10.52972763,138.62,138.58,7.21599058]
[1767966120496,7.88258741,138.64,138.58,7.21599058]
[1767966120710,3.47260693,138.66,138.61,2.80325914]
[1767966121014,0.66934779,138.68,138.64,2.80325914]
[1767966121315,0.66934779,138.68,138.64,10.67059341]
[1767966121695,0.66934779,138.68,138.64,7.86733427]
[1767966121996,15.96325914,138.69,138.65,0.65440993]
[1767966122814,16.47576101,138.69,138.65,0.65440993]
[1767966123030,23.68610026,138.69,138.65,0.65440993]
[1767966123389,2.80325914,138.68,138.65,0.65440993]
[1767966124422,20.88284112,138.69,138.65,0.65440993]
[1767966124621,20.88284112,138.69,138.64,7.89810416]
[1767966124841,2.80325914,138.68,138.64,7.89810416]
[1767966125612,3.31883565,138.65,138.61,7.8993241]
[1767966125820,2.80325914,138.64,138.61,7.8993241]
[1767966126020,3.31883565,138.65,138.61,7.8993241]
[1767966126392,15.96325914,138.66,138.62,7.89906374]
[1767966127615,2.80325914,138.66,138.63,0.68517982]
[1767966127916,16.66119152,138.67,138.63,0.68517982]
[1767966128413,13.85793238,138.67,138.63,0.68517982]
[1767966128593,16.66119152,138.67,138.63,0.68517982]
[1767966128919,16.66119152,138.67,138.63,7.89855313]
[1767966129425,15.96325914,138.67,138.63,7.89855313]
[1767966129825,15.96325914,138.67,138.64,0.68517982]
[1767966130514,5.37717049,138.66,138.64,0.68517982]
[1767966130718,15.96325914,138.67,138.64,0.68517982]
[1767966130916,5.377172,138.66,138.63,7.21337331]
[1767966131217,2.80325914,138.65,138.62,0.68517982]
[1767966132025,2.80325914,138.65,138.62,7.89904662]
[1767966133219,21.06745845,138.67,138.62,7.89904662]
[1767966133412,2.80325914,138.66,138.62,7.89904662]
[1767966133721,2.80325914,138.66,138.63,0.68517982]
[1767966134397,2.80325914,138.67,138.63,0.68517982]
[1767966135422,2.80325914,138.67,138.64,0.68517982]
[1767966137302,0.69793238,138.71,138.65,0.68517982]
[1767966137509,2.80325914,138.69,138.66,0.68517982]
[1767966138824,2.80325914,138.69,138.66,7.89696991]
[1767966139217,2.80325914,138.68,138.66,0.68517982]
[1767966139418,2.80325914,138.68,138.66,7.89698049]
[1767966139623,0.48420312,138.7,138.66,7.89698049]
[1767966139820,2.80325914,138.68,138.66,7.89698049]
[1767966140623,2.07825914,138.68,138.67,0.68517982]
[1767966140824,2.80325914,138.69,138.67,0.68517982]
[1767966141023,0.69793238,138.71,138.67,7.89632485]
[1767966141533,2.80325914,138.7,138.67,7.89632485]
[1767966143335,2.80325914,138.69,138.67,7.89632485]
[1767966144332,0.2,138.75,138.68,0.68517982]
[1767966144521,2.80325914,138.72,138.68,0.68517982]
[1767966145436,2.80325914,138.72,138.69,0.68517982]
[1767966147438,2.80325914,138.72,138.7,7.20980533]
[1767966147743,2.80325914,138.72,138.7,7.89498515]
[1767966148348,3.50119152,138.71,138.69,7.2102709]
[1767966148644,2.80325914,138.7,138.69,7.2102709]
[1767966149544,2.80325914,138.7,138.68,7.21084511]
[1767966150224,2.80325914,138.7,138.68,7.89602493]
[1767966150427,2.80325914,138.71,138.68,7.89602493]
[1767966150829,2.80325914,138.72,138.68,7.89602493]
[1767966151026,2.80325914,138.71,138.68,7.89602493]
[1767966151235,0.69793238,138.72,138.68,7.89602493]
[1767966151430,2.80325914,138.7,138.68,7.89602493]
[1767966151748,2.80325914,138.71,138.68,7.89602493]
[1767966152642,2.80325914,138.69,138.67,7.21136511]
[1767966152862,0.65708098,138.7,138.66,7.90689446]
[1767966152863,2.80325914,138.68,138.66,7.90689446]
[1767966153150,3.46034012,138.67,138.63,18.72802552]
[1767966153346,2.80325914,138.65,138.63,0.69521556]
[1767966153757,2.80325914,138.64,138.61,0.69521556]
[1767966154250,2.80325914,138.64,138.62,7.90889991]
[1767966155447,0.65708098,138.66,138.62,7.90889991]
[1767966155629,0.65708098,138.63,138.62,7.21368435]
[1767966156038,3.46034012,138.64,138.62,7.21368435]
[1767966156553,0.65708098,138.63,138.6,25.25202718]
[1767966156726,2.80325914,138.64,138.6,25.94724274]
[1767966156925,2.80325914,138.64,138.61,0.69521556]
[1767966157244,7.2107475,138.69,138.61,3.4984747]
[1767966157442,2.80325914,138.66,138.62,0.69521556]
[1767966157745,2.80325914,138.66,138.61,2.80325914]
[1767966158051,2.80325914,138.66,138.62,0.69521556]
[1767966158633,2.80325914,138.66,138.63,7.21344586]
[1767966159461,2.80325914,138.65,138.63,7.21344586]
[1767966160664,4.37508312,138.65,138.63,7.21344586]
[1767966162150,4.37508312,138.65,138.63,7.90866142]
[1767966163751,4.37508312,138.66,138.63,7.90866142]
[1767966164650,0.65708098,138.69,138.64,0.69521556]
[1767966164958,4.37508312,138.67,138.64,0.69521556]
[1767966165468,4.37508312,138.66,138.63,7.21344586]
[1767966165669,0.65708098,138.67,138.63,7.90866142]
[1767966165843,4.37508312,138.66,138.63,7.90866142]
[1767966166569,5.0321641,138.67,138.63,12.28374454]
[1767966168157,0.65708098,138.67,138.63,12.28374454]
[1767966168680,0.65708098,138.67,138.63,7.90866142]
[1767966168969,0.65708098,138.67,138.63,12.28374454]
[1767966169647,12.2439027,138.67,138.63,0.69521556]
[1767966169847,4.37508312,138.66,138.63,0.69521556]
[1767966170283,7.86881958,138.67,138.63,7.90862189]
[1767966170454,4.37508312,138.66,138.63,7.90862189]
[1767966170644,4.37508312,138.65,138.63,0.69521556]
[1767966172859,0.69795201,138.66,138.63,7.90855571]
[1767966173052,4.37508312,138.66,138.63,6.53634673]
[1767966173258,4.37508312,138.66,138.63,5.93839472]
[1767966173768,4.37508312,138.67,138.63,5.93839472]
[1767966174953,4.37508312,138.67,138.63,6.63327424]
[1767966175354,7.21092292,138.68,138.63,6.63327424]
[1767966175554,9.76425925,138.67,138.63,6.63327424]
[1767966175751,4.37508312,138.67,138.63,0.69487952]
[1767966175968,4.37508312,138.66,138.63,0.69487952]
[1767966179077,18.0267429,138.69,138.63,7.90830301]
[1767966179277,4.37508312,138.66,138.63,7.90830301]
[1767966180281,7.211283,138.68,138.64,0.69487952]
[1767966180578,5.38969075,138.67,138.64,0.69487952]
[1767966180767,4.37508312,138.67,138.63,7.21342349]
[1767966182979,4.37508312,138.66,138.62,7.21396623]
[1767966183981,4.37508312,138.66,138.62,7.90220973]
[1767966184162,4.37508312,138.66,138.63,0.6882435]
[1767966185888,4.37508312,138.67,138.63,0.6882435]
[1767966186682,18.0267429,138.69,138.63,7.90154644]
[1767966186864,4.37508312,138.67,138.63,7.90154644]
[1767966187666,4.37508312,138.67,138.64,0.6882435]
[1767966188068,7.20980533,138.7,138.65,0.6882435]
[1767966188274,4.37508312,138.68,138.65,0.6882435]
[1767966188590,5.39018794,138.67,138.64,7.21285655]
[1767966189078,4.37508312,138.7,138.64,12.27618317]
[1767966189280,9.7649885,138.69,138.65,0.6882435]
[1767966189587,4.37508312,138.69,138.65,0.6882435]
[1767966189972,4.37508312,138.67,138.64,7.90110005]
[1767966190172,7.2108403,138.69,138.63,0.6882435]
[1767966190173,4.37508312,138.65,138.63,0.6882435]
[1767966190484,7.2108403,138.69,138.59,17.51508312]
[1767966190485,4.37508312,138.64,138.59,17.51508312]
[1767966190674,4.37508312,138.6,138.53,6.11431728]
[1767966190873,4.37508312,138.59,138.56,7.21675273]
[1767966191164,4.37508312,138.58,138.56,7.21675273]
[1767966191883,0.64133621,138.6,138.56,7.21675273]
[1767966192094,4.37508312,138.59,138.55,29.63672151]
[1767966192403,4.37508312,138.59,138.56,0.6882435]
[1767966194585,4.37508312,138.59,138.57,0.6882435]
[1767966196285,4.37508312,138.59,138.55,7.21761097]
[1767966196489,4.37508312,138.59,138.56,0.6882435]
[1767966197067,4.37508312,138.58,138.55,0.6882435]
[1767966197271,4.37508312,138.57,138.55,0.6882435]
[1767966197467,4.37508312,138.57,138.54,7.21805276]
[1767966197670,4.37508312,138.56,138.54,7.21805276]
[1767966197871,4.37508312,138.56,138.53,8.10678257]
[1767966198588,7.34616882,138.58,138.54,0.6882435]
[1767966198795,4.37508312,138.56,138.54,0.6882435]
[1767966198997,4.37508312,138.55,138.53,0.2]
[1767966199301,4.37508312,138.55,138.53,0.8882435]
[1767966199784,4.37508312,138.55,138.53,8.10687457]
[1767966200792,4.37508312,138.56,138.53,8.10687457]
[1767966204092,4.37508312,138.54,138.53,0.8882435]
[1767966204282,4.37508312,138.55,138.53,8.10684254]
[1767966204483,4.51040148,138.56,138.53,7.41859904]
[1767966204694,4.37508312,138.55,138.53,0.8882435]
[1767966204993,4.37508312,138.54,138.53,0.2]
[1767966205886,4.37508312,138.55,138.53,0.2]
[1767966207075,5.03190861,138.56,138.53,0.2]
[1767966208400,0.65682549,138.56,138.53,0.2]
[1767966208579,4.37508312,138.55,138.53,0.2]
[1767966208976,4.37508312,138.54,138.53,0.06858199]
[1767966209906,4.37508312,138.54,138.51,12.78691036]
[1767966210069,4.37508312,138.53,138.51,12.78691036]
[1767966211087,4.37508312,138.53,138.51,12.43008487]
[1767966211296,4.37508312,138.52,138.51,12.43008487]
[1767966211490,4.34508313,138.52,138.51,12.43008487]
[1767966211692,7.21844289,138.54,138.51,12.43008487]
[1767966211693,4.37508312,138.53,138.51,12.43008487]
[1767966212285,4.37508312,138.54,138.51,12.43008487]
[1767966213382,4.37508312,138.54,138.51,19.64969158]
[1767966213990,4.37508312,138.54,138.51,12.43008487]
[1767966214685,20.37782865,138.55,138.51,12.43008487]
[1767966215012,17.53508312,138.55,138.51,24.70980645]
[1767966215217,17.53508312,138.55,138.51,20.33472333]
[1767966216387,13.16,138.55,138.51,24.70980645]
[1767966216783,17.53508312,138.55,138.51,20.33472333]
[1767966218509,13.16,138.55,138.51,20.33472333]
[1767966218684,17.53508312,138.55,138.51,20.33472333]
[1767966219496,7.21731524,138.56,138.52,0.68500115]
[1767966219688,18.04068353,138.58,138.53,0.68500115]
[1767966219689,4.37508312,138.57,138.53,0.68500115]
[1767966220107,4.37508312,138.56,138.53,0.68500115]
[1767966220305,4.37508312,138.55,138.53,0.68500115]
[1767966220496,4.37508312,138.56,138.53,0.68500115]
[1767966222436,4.37508312,138.56,138.53,7.90346599]
[1767966222611,2.80388118,138.56,138.53,7.90346599]
[1767966223122,7.21580201,138.59,138.54,0.68500115]
[1767966223419,2.80388118,138.57,138.54,0.68500115]
[1767966225104,2.80388118,138.56,138.53,7.90341526]
[1767966225416,2.80388118,138.54,138.51,20.33445707]
[1767966225919,2.80388118,138.54,138.51,13.11508602]
[1767966226121,38.41627331,138.58,138.51,13.11508602]
[1767966226299,2.80388118,138.54,138.51,20.33470511]
[1767966226695,38.41627331,138.58,138.51,19.64970396]
[1767966226896,2.80388118,138.54,138.51,19.64970396]
[1767966227096,2.80388118,138.54,138.51,12.43008487]
[1767966228517,2.80388118,138.53,138.51,12.43008487]
[1767966229821,2.80388118,138.54,138.51,12.43008487]
[1767966231924,2.80388118,138.54,138.52,0.68186511]
[1767966232725,2.80388118,138.54,138.51,13.11194998]
[1767966235403,2.80388118,138.53,138.51,13.11194998]
[1767966236228,2.80388118,138.53,138.51,12.43008487]
[1767966236611,2.80388118,138.52,138.51,12.43008487]
[1767966237011,2.80388118,138.52,138.49,0.78186511]
[1767966237215,2.80388118,138.51,138.49,0.78186511]
[1767966238414,2.80388118,138.52,138.49,0.78186511]
[1767966238812,7.21813194,138.54,138.5,0.68186511]
[1767966239010,5.39706329,138.53,138.5,0.68186511]
[1767966239216,2.80388118,138.53,138.5,0.68186511]
[1767966240830,23.18201312,138.54,138.5,0.68186511]
[1767966241230,8.20433352,138.53,138.5,0.68186511]
[1767966241424,2.80388118,138.53,138.49,8.00252083]
[1767966242229,2.80388118,138.53,138.5,0.68186511]
[1767966243034,13.16,138.54,138.51,0.67154646]
[1767966243219,8.20640249,138.53,138.51,0.67154646]
[1767966243422,2.80388118,138.53,138.51,0.67154646]
[1767966244432,7.21816432,138.54,138.51,0.67154646]
[1767966244735,8.20608172,138.53,138.51,0.67154646]